bitfinex/quotes_SOLUSD_20241209
["timestamp","ask_amount","ask_price","bid_price","bid_amount"]
[1733764390830,6.3331,225.32,225.19,20.0]
[1733764391130,0.7773,225.29,225.16,9.15747997]
[1733764391340,0.6653,225.28,225.17,0.12549]
[1733764391631,20.7773,225.29,225.17,0.12549]
[1733764391632,0.7773,225.29,225.2,9.28296997]
[1733764392454,0.7773,225.29,225.21,0.12549]
[1733764392644,6.3331,225.32,225.21,0.12549]
[1733764392842,6.3331,225.32,225.22,0.12549]
[1733764393857,6.3331,225.32,225.21,0.25098]
[1733764394060,0.6653,225.31,225.21,0.25098]
[1733764394445,0.6653,225.31,225.2,0.25098]
[1733764396753,0.6653,225.31,225.2,9.40845997]
[1733764397977,0.6653,225.31,225.22,0.12549]
[1733764398156,0.6653,225.32,225.22,0.25098]
[1733764398876,0.6653,225.33,225.21,9.40845997]
[1733764399184,0.6653,225.36,225.25,0.25098]
[1733764399687,0.6653,225.36,225.25,9.40845997]
[1733764400569,24.442184,225.39,225.25,9.40845997]
[1733764401075,24.442184,225.39,225.25,0.25098]
[1733764401952,3.3277,225.38,225.25,0.25098]
[1733764402152,0.6653,225.37,225.25,0.25098]
[1733764403487,20.0,225.36,225.25,0.25098]
[1733764403683,0.6653,225.35,225.25,0.25098]
[1733764406563,0.6653,225.37,225.25,0.25098]
[1733764408261,0.6653,225.38,225.27,0.25098]
[1733764408666,3.993,225.38,225.27,0.12549]
[1733764409391,23.776884,225.37,225.24,0.12549]
[1733764409564,0.6653,225.36,225.24,0.25098]
[1733764410460,20.0,225.34,225.24,0.25098]
[1733764410662,0.6653,225.33,225.24,0.25098]
[1733764412102,0.6653,225.36,225.24,0.25098]
[1733764412277,0.6653,225.36,225.24,9.40845997]
[1733764412472,0.6653,225.37,225.26,0.25098]
[1733764413075,0.6653,225.37,225.26,0.12549]
[1733764413287,0.6653,225.37,225.24,9.40845997]
[1733764413495,0.6653,225.39,225.24,9.40845997]
[1733764413681,20.6653,225.39,225.24,9.40845997]
[1733764414768,23.776884,225.38,225.24,9.40845997]
[1733764415097,0.6653,225.37,225.27,0.12549]
[1733764415265,0.6653,225.37,225.26,0.25098]
[1733764416671,0.6653,225.37,225.27,0.25098]
[1733764416995,24.442184,225.4,225.27,0.25098]
[1733764417369,24.442184,225.4,225.26,0.25098]
[1733764418094,24.442184,225.4,225.28,0.25098]
[1733764418616,0.6653,225.4,225.28,9.40845997]
[1733764418785,0.6653,225.43,225.32,0.12549]
[1733764418983,0.6653,225.43,225.32,0.25098]
[1733764419610,0.6653,225.46,225.32,0.25098]
[1733764420489,3.3266,225.45,225.31,6.2776]
[1733764420815,23.776884,225.43,225.31,6.2776]
[1733764421138,23.776884,225.39,225.31,6.2776]
[1733764421289,0.6653,225.38,225.31,6.2776]
[1733764421993,24.442184,225.39,225.31,6.2776]
[1733764432110,20.0,225.36,225.31,6.2776]
[1733764432314,0.6653,225.35,225.31,6.2776]
[1733764432903,0.6653,225.35,225.27,1.5968]
[1733764432904,23.776884,225.34,225.27,1.5968]
[1733764433126,0.6653,225.33,225.27,1.5968]
[1733764434147,23.776884,225.34,225.27,1.5968]
[1733764434313,23.776884,225.32,225.27,1.5968]
[1733764434635,0.6653,225.31,225.27,1.5968]
[1733764435041,0.6653,225.31,225.16,13.92153471]
[1733764435042,23.776884,225.3,225.21,1.6226]
[1733764435243,0.6653,225.29,225.21,1.6226]
[1733764435539,3.3284,225.34,225.22,0.12549]
[1733764435844,24.442184,225.33,225.22,0.12549]
[1733764436413,24.442184,225.33,225.22,0.25098]
[1733764437957,23.776884,225.31,225.21,1.6226]
[1733764438238,0.6653,225.3,225.21,1.6226]
[1733764439343,0.6653,225.3,225.22,0.12549]
[1733764441820,23.776884,225.34,225.22,0.25098]
[1733764442035,20.0,225.31,225.22,0.25098]
[1733764442248,0.6653,225.3,225.22,0.25098]
[1733764443444,20.0,225.31,225.22,0.25098]
[1733764444022,0.6653,225.3,225.22,0.25098]
[1733764444356,20.0,225.31,225.22,0.25098]
[1733764444521,0.6653,225.3,225.22,0.25098]
[1733764444724,20.0,225.31,225.22,0.25098]
[1733764445123,0.6653,225.33,225.22,0.25098]
[1733764445730,0.6653,225.33,225.22,9.42236377]
[1733764445929,0.6653,225.33,225.22,0.25098]
[1733764448221,20.0,225.31,225.22,0.25098]
[1733764448421,0.6653,225.3,225.22,0.25098]
[1733764450921,0.6653,225.3,225.21,0.12549]
[1733764451448,0.6653,225.3,225.21,9.29687377]
[1733764451758,23.776884,225.3,225.23,9.17138377]
[1733764451963,23.776884,225.3,225.22,9.17138377]
[1733764453125,23.776884,225.37,225.23,9.42236377]
[1733764453337,20.0,225.32,225.23,9.42236377]
[1733764453535,0.6653,225.33,225.23,9.42236377]
[1733764453755,23.776884,225.32,225.23,9.42236377]
[1733764453917,23.776884,225.32,225.25,0.25098]
[1733764454121,23.776884,225.33,225.25,0.25098]
[1733764454344,23.776884,225.35,225.25,0.25098]
[1733764454653,23.776884,225.33,225.25,0.25098]
[1733764455933,23.776884,225.36,225.27,0.12549]
[1733764456131,23.776884,225.34,225.27,0.25098]
[1733764456357,23.776884,225.4,225.29,9.42236377]
[1733764456538,23.776884,225.38,225.29,9.42236377]
[1733764456755,0.6653,225.37,225.29,9.42236377]
[1733764457068,0.6653,225.4,225.29,0.25098]
[1733764457728,20.6653,225.4,225.29,0.25098]
[1733764458131,23.776884,225.39,225.29,0.25098]
[1733764458362,23.776884,225.37,225.29,0.25098]
[1733764459357,24.442184,225.39,225.29,0.25098]
[1733764462735,24.442184,225.39,225.28,6.2386]
[1733764465971,24.442184,225.39,225.29,0.25098]
[1733764471652,24.442184,225.39,225.28,6.2386]
[1733764471856,27.769884,225.39,225.28,6.2386]
[1733764472959,20.0,225.36,225.28,6.2386]
[1733764473280,23.776884,225.34,225.28,6.2386]
[1733764473480,23.776884,225.32,225.28,6.2386]
[1733764473775,23.776884,225.3,225.24,1.5036]
[1733764473987,0.6653,225.29,225.24,1.5036]
[1733764474440,23.776884,225.3,225.24,1.5036]
[1733764474639,23.776884,225.32,225.24,10.67498377]
[1733764474873,23.776884,225.34,225.25,9.42236377]
[1733764475081,23.776884,225.34,225.26,9.17138377]
[1733764475283,0.6653,225.33,225.25,9.42236377]
[1733764475443,0.6653,225.33,225.25,0.25098]
[1733764476153,24.442184,225.35,225.25,0.25098]
[1733764476476,24.442184,225.35,225.27,0.12549]
[1733764476774,24.442184,225.35,225.27,0.25098]
[1733764478882,24.442184,225.35,225.26,0.12549]
[1733764479248,24.442184,225.35,225.24,1.5036]
[1733764479484,27.770284,225.35,225.24,1.5036]
[1733764479647,23.776884,225.31,225.24,1.5036]
[1733764479851,0.6653,225.3,225.24,1.5036]
[1733764480175,23.776884,225.31,225.24,1.5036]
[1733764480355,0.6653,225.3,225.24,1.5036]
[1733764480554,20.0,225.32,225.24,1.5036]
[1733764480760,23.776884,225.3,225.24,1.5036]
[1733764480975,0.6653,225.29,225.24,1.5036]
[1733764481283,0.6653,225.29,225.23,6.6561]
[1733764481284,23.776884,225.28,225.23,6.6561]
[1733764481456,23.776884,225.26,225.23,6.6561]
[1733764481654,23.776884,225.24,225.19,1.5936]
[1733764481961,23.776884,225.24,225.19,10.76498377]
[1733764482166,23.776884,225.26,225.19,10.76498377]
[1733764482351,23.776884,225.24,225.19,1.5936]
[1733764484182,23.776884,225.24,225.19,10.76498377]
[1733764484658,23.776884,225.28,225.19,10.76498377]
[1733764484977,23.776884,225.26,225.2,0.25098]
[1733764485191,23.776884,225.32,225.21,9.17138377]
[1733764485488,23.776884,225.3,225.21,9.17138377]
[1733764485690,23.776884,225.28,225.21,9.17138377]
[1733764486053,23.776884,225.3,225.22,0.12549]
[1733764486252,23.776884,225.32,225.22,0.25098]
[1733764486455,23.776884,225.3,225.22,0.25098]
[1733764486683,23.776884,225.28,225.22,0.25098]
[1733764486883,0.6653,225.31,225.22,0.25098]
[1733764487061,23.776884,225.3,225.2,0.12549]
[1733764487262,0.6653,225.29,225.2,9.42236377]
[1733764487662,23.776884,225.28,225.2,9.42236377]
[1733764489400,23.776884,225.28,225.2,0.25098]
[1733764489577,23.776884,225.31,225.2,0.25098]
[1733764489886,23.776884,225.29,225.2,0.25098]
[1733764490094,0.6653,225.28,225.2,0.25098]
[1733764490293,0.6653,225.3,225.2,0.25098]
[1733764490586,23.776884,225.29,225.2,9.42236377]
[1733764491264,23.776884,225.31,225.2,9.42236377]
[1733764491458,23.776884,225.29,225.2,9.42236377]
[1733764491860,23.776884,225.29,225.21,9.17138377]
[1733764492060,23.776884,225.29,225.23,0.25098]
[1733764492287,23.776884,225.31,225.23,0.25098]
[1733764492597,0.6653,225.32,225.23,0.25098]
[1733764492598,23.776884,225.29,225.23,0.25098]
[1733764492771,23.776884,225.29,225.22,0.25098]
[1733764493158,23.776884,225.31,225.2,0.25098]
[1733764493384,23.776884,225.29,225.2,9.42236377]
[1733764494079,23.776884,225.31,225.2,9.42236377]
[1733764494292,23.776884,225.29,225.2,9.42236377]
[1733764494696,23.776884,225.31,225.2,9.42236377]
[1733764494893,23.776884,225.29,225.2,9.42236377]
[1733764495586,23.776884,225.31,225.2,9.42236377]
[1733764495787,23.776884,225.29,225.2,9.42236377]
[1733764496597,23.776884,225.31,225.2,9.42236377]
[1733764496794,0.6653,225.3,225.2,9.42236377]
[1733764496996,23.776884,225.29,225.2,9.42236377]
[1733764497200,0.6653,225.28,225.2,9.42236377]
[1733764497512,0.6653,225.3,225.2,9.42236377]
[1733764497710,23.776884,225.29,225.2,9.42236377]
[1733764498023,0.6653,225.28,225.2,0.25098]
[1733764498320,0.6653,225.28,225.19,1.5936]
[1733764498321,23.776884,225.27,225.19,1.5936]
[1733764498523,0.6653,225.26,225.19,1.5936]
[1733764499388,0.6653,225.26,225.2,0.12549]
[1733764500005,0.6653,225.26,225.2,0.25098]
[1733764500310,23.776884,225.29,225.2,0.25098]
[1733764500517,23.776884,225.27,225.2,0.25098]
[1733764501345,23.776884,225.31,225.2,9.42236377]
[1733764501630,23.776884,225.29,225.22,0.12549]
[1733764501934,23.776884,225.29,225.22,0.25098]
[1733764502225,0.6653,225.3,225.22,0.25098]
[1733764502908,0.6653,225.32,225.2,0.25098]
[1733764503114,23.776884,225.31,225.2,0.12549]
[1733764503417,23.776884,225.29,225.2,0.12549]
[1733764503726,0.6653,225.28,225.21,0.12549]
[1733764503932,0.6653,225.3,225.21,0.12549]
[1733764504106,23.776884,225.29,225.21,0.12549]
[1733764504314,23.776884,225.27,225.2,0.12549]
[1733764504507,0.6653,225.26,225.2,0.12549]
[1733764505126,23.776884,225.25,225.19,1.5936]
[1733764505307,0.6653,225.24,225.19,1.5936]
[1733764505629,23.776884,225.23,225.19,1.5936]
[1733764505834,23.776884,225.21,225.17,6.1177]
[1733764505999,0.6653,225.2,225.17,6.1177]
[1733764506200,0.6653,225.2,225.14,10.78368377]
[1733764506201,23.776884,225.19,225.14,1.6123]
[1733764506503,0.6653,225.18,225.14,1.6123]
[1733764506801,23.776884,225.17,225.12,6.5578]
[1733764507003,23.776884,225.17,225.08,1.6123]
[1733764507004,23.776884,225.15,225.08,1.6123]
[1733764507211,23.776884,225.13,225.08,1.6123]
[1733764507421,0.6653,225.12,225.08,1.6123]
[1733764507611,23.776884,225.13,225.08,1.6123]
[1733764507923,0.6653,225.12,225.08,1.6123]
[1733764508115,23.776884,225.11,225.08,1.6123]
[1733764508327,0.6653,225.1,225.08,1.6123]
[1733764508541,0.6653,225.12,225.08,1.6123]
[1733764508712,23.776884,225.11,225.08,1.6123]
[1733764509038,0.6653,225.1,225.08,1.6123]
[1733764509202,23.776884,225.11,225.08,1.6123]
[1733764509406,0.6653,225.1,225.08,1.6123]
[1733764509618,0.6653,225.12,225.08,1.6123]
[1733764510119,23.776884,225.16,225.09,0.12549]
[1733764510308,0.6653,225.15,225.09,0.12549]
[1733764510707,24.442184,225.17,225.09,0.25098]
[1733764510911,0.6653,225.21,225.12,0.12549]
[1733764511223,3.3295,225.26,225.12,9.42236377]
[1733764511224,0.6653,225.25,225.12,9.42236377]
[1733764511433,0.6653,225.25,225.14,0.25098]
[1733764511637,0.6653,225.25,225.18,7.7373]
[1733764511805,0.6653,225.29,225.19,0.12549]
[1733764512207,0.6653,225.29,225.19,0.25098]
[1733764514529,23.776884,225.28,225.19,0.25098]
[1733764514832,23.776884,225.26,225.19,0.25098]
[1733764515025,0.6653,225.25,225.19,0.25098]
[1733764515202,23.776884,225.24,225.18,7.7373]
[1733764515406,0.6653,225.23,225.18,7.7373]
[1733764515635,23.776884,225.22,225.18,7.7373]
[1733764515931,23.776884,225.2,225.13,1.5145]
[1733764516135,0.6653,225.19,225.13,1.5145]
[1733764517321,0.6653,225.19,225.14,0.12549]
[1733764518210,0.6653,225.19,225.13,1.5145]
[1733764518734,23.776884,225.18,225.13,1.5145]
[1733764518921,23.776884,225.16,225.12,6.1271]
[1733764519572,0.6653,225.15,225.12,6.1271]
[1733764520108,23.776884,225.14,225.12,6.1271]
[1733764520438,13.1909,225.26,225.08,1.5171]
[1733764520439,23.776884,225.12,225.08,1.5171]
[1733764520630,23.776884,225.1,225.08,1.5171]
[1733764521526,0.6653,225.18,225.08,1.5171]
[1733764521706,23.776884,225.17,225.08,15.86080045]
[1733764521917,0.6653,225.16,225.08,15.86080045]
[1733764522116,23.776884,225.15,225.09,0.12549]
[1733764522734,3.9953,225.23,225.09,14.59468045]
[1733764522932,3.9953,225.23,225.11,0.25098]
[1733764523138,3.9953,225.23,225.11,14.59468045]
[1733764523311,0.6653,225.23,225.13,0.25098]
[1733764523707,0.6653,225.25,225.13,0.25098]
[1733764524325,23.776884,225.24,225.13,0.25098]
[1733764524530,23.776884,225.22,225.13,14.46919045]
[1733764524834,23.776884,225.2,225.13,14.46919045]
[1733764525033,3.3294,225.27,225.14,0.12549]
[1733764525337,0.6653,225.26,225.16,6.1419]
[1733764525717,0.6653,225.26,225.17,0.25098]
[1733764525924,0.6653,225.3,225.17,0.25098]
[1733764526140,0.6653,225.3,225.18,1.5171]
[1733764527236,23.776884,225.29,225.18,1.5171]
[1733764527443,23.776884,225.27,225.18,1.5171]
[1733764527605,23.776884,225.25,225.18,1.5171]
[1733764527926,0.6653,225.24,225.18,1.5171]
[1733764528118,23.776884,225.25,225.18,1.5171]
[1733764528334,23.776884,225.23,225.18,1.5171]
[1733764528647,23.776884,225.21,225.13,0.12549]
[1733764528808,23.776884,225.19,225.13,0.25098]
[1733764529011,0.6653,225.24,225.15,0.25098]
[1733764529242,23.776884,225.23,225.17,0.12549]
[1733764529825,23.776884,225.23,225.16,0.25098]
[1733764530753,0.6653,225.22,225.16,0.25098]
[1733764530953,23.776884,225.21,225.16,0.25098]
[1733764531138,23.776884,225.21,225.15,0.25098]
[1733764531641,23.776884,225.21,225.15,0.12549]
[1733764531845,23.776884,225.21,225.14,0.12549]
[1733764532053,23.776884,225.21,225.16,0.12549]
[1733764532345,23.776884,225.21,225.16,0.25098]
[1733764535845,23.776884,225.26,225.17,0.12549]
[1733764536065,0.6653,225.25,225.17,14.46919045]
[1733764536412,0.6653,225.25,225.18,0.12549]
[1733764536617,23.776884,225.26,225.18,0.12549]
[1733764536843,24.442184,225.27,225.18,0.12549]
[1733764537144,0.6653,225.27,225.21,1.5962]
[1733764537355,0.6653,225.29,225.22,0.12549]
[1733764538218,24.442184,225.31,225.22,0.12549]
[1733764539574,24.442184,225.31,225.21,1.5962]
[1733764540366,3.3288,225.3,225.21,1.5962]
[1733764540527,43.776884,225.28,225.21,1.5962]
[1733764540731,43.776884,225.28,225.19,6.4852]
[1733764540732,23.776884,225.26,225.19,6.4852]
[1733764540932,20.0,225.28,225.19,6.4852]
[1733764540933,23.776884,225.24,225.19,6.4852]
[1733764541160,0.6653,225.23,225.19,6.4852]
[1733764541660,23.776884,225.24,225.19,6.4852]
[1733764541844,0.6653,225.27,225.19,6.4852]
[1733764541845,23.776884,225.26,225.19,6.4852]
[1733764542045,23.776884,225.29,225.2,0.12549]
[1733764542365,23.776884,225.27,225.2,0.12549]
[1733764542577,0.6653,225.26,225.2,0.12549]
[1733764542866,0.6653,225.28,225.2,0.12549]
[1733764543167,23.776884,225.27,225.2,0.12549]
[1733764543368,0.6653,225.26,225.2,0.12549]
[1733764543552,23.776884,225.27,225.2,0.12549]
[1733764543756,0.6653,225.26,225.2,0.12549]
[1733764544446,0.6653,225.26,225.19,6.4852]
[1733764545943,23.776884,225.25,225.19,6.4852]
[1733764546141,23.776884,225.27,225.19,6.4852]
[1733764546142,23.776884,225.23,225.19,6.4852]
[1733764546345,0.6653,225.22,225.19,6.4852]
[1733764546651,23.776884,225.23,225.19,6.4852]
[1733764548967,0.6653,225.22,225.19,6.4852]
[1733764549481,23.776884,225.21,225.16,1.5469]
[1733764549642,23.776884,225.19,225.16,1.5469]
[1733764549844,23.776884,225.21,225.14,6.2735]
[1733764549845,0.6653,225.18,225.14,6.2735]
[1733764550073,23.776884,225.19,225.14,6.2735]
[1733764550378,23.776884,225.17,225.11,1.5855]
[1733764550552,0.6653,225.16,225.11,1.5855]
[1733764550877,23.776884,225.15,225.08,6.5416]
[1733764551052,0.6653,225.14,225.08,6.5416]
[1733764551746,23.776884,225.13,225.08,6.5416]
[1733764551947,0.6653,225.12,225.08,6.5416]
[1733764552352,23.776884,225.11,225.08,6.5416]
[1733764553282,0.6653,225.1,225.08,6.5416]
[1733764555072,23.776884,225.11,225.08,6.5416]
[1733764555274,0.6653,225.18,225.1,9.17305619]
[1733764555476,0.6653,225.22,225.12,9.17305619]
[1733764555777,0.6653,225.22,225.11,9.17305619]
[1733764556145,0.6653,225.22,225.12,9.17305619]
[1733764556645,0.6653,225.26,225.18,9.17305619]
[1733764556858,0.6653,225.26,225.19,9.17305619]
[1733764557063,0.6653,225.3,225.19,9.17305619]
[1733764557248,0.6653,225.3,225.19,14.33335216]
[1733764558679,0.6653,225.3,225.18,20.68985216]
[1733764559250,0.6653,225.3,225.2,14.45884216]
[1733764559560,0.6653,225.3,225.2,14.33335216]
[1733764559759,0.6653,225.33,225.18,20.68985216]
[1733764559956,0.6653,225.33,225.18,6.3565]
[1733764559957,3.9937,225.33,225.18,6.3565]
[1733764560163,5.12549,225.32,225.17,1.6548]
[1733764560365,0.12549,225.3,225.13,6.45]
[1733764560561,24.027864,225.28,225.13,6.45]
[1733764560757,20.0,225.23,225.13,6.45]
[1733764560984,23.776884,225.21,225.13,6.45]
[1733764561281,23.776884,225.19,225.1,1.6304]
[1733764561481,23.776884,225.17,225.1,1.6304]
[1733764561685,0.6653,225.16,225.1,1.6304]
[1733764562161,23.776884,225.15,225.07,6.45]
[1733764562358,0.6653,225.14,225.07,6.45]
[1733764564150,0.6653,225.14,225.08,0.25098]
[1733764564356,24.442184,225.19,225.1,0.12549]
[1733764564613,24.442184,225.19,225.1,0.25098]
[1733764565483,24.442184,225.19,225.09,0.25098]
[1733764565647,24.442184,225.19,225.08,14.33335216]
[1733764565851,24.442184,225.19,225.08,0.12549]
[1733764566284,24.442184,225.19,225.08,0.25098]
[1733764566647,24.442184,225.19,225.07,6.45]
[1733764566857,23.776884,225.15,225.03,1.651]
[1733764567155,23.776884,225.13,225.03,1.651]
[1733764567377,23.776884,225.11,225.03,1.651]
[1733764567579,0.6653,225.1,225.03,1.651]
[1733764570280,0.6653,225.15,225.09,14.33335216]
[1733764570480,0.6653,225.18,225.09,14.33335216]
[1733764571662,0.6653,225.18,225.11,14.33335216]
[1733764571899,4.9663,225.23,225.07,0.12549]
[1733764571900,0.6653,225.22,225.14,14.33335216]
[1733764572144,0.6653,225.22,225.08,0.12549]
[1733764572308,0.6653,225.22,225.11,0.25098]
[1733764572775,0.6653,225.22,225.1,14.33335216]
[1733764573172,23.776884,225.21,225.1,14.33335216]
[1733764573472,23.776884,225.19,225.1,14.33335216]
[1733764573678,0.6653,225.18,225.1,14.33335216]
[1733764573895,0.6653,225.18,225.1,0.25098]
[1733764574263,0.6653,225.18,225.1,14.45884216]
[1733764574511,20.0,225.21,225.12,0.12549]
[1733764574777,0.6653,225.2,225.12,0.12549]
[1733764576010,20.0,225.22,225.13,14.45884216]
[1733764576203,0.6653,225.21,225.14,0.12549]
[1733764576521,24.442184,225.24,225.14,0.12549]
[1733764577189,24.442184,225.24,225.13,0.25098]
[1733764577521,24.442184,225.24,225.13,0.12549]
[1733764577683,24.442184,225.24,225.12,14.58433216]
[1733764577887,24.442184,225.24,225.14,0.25098]
[1733764578820,24.442184,225.24,225.13,0.25098]
[1733764579209,24.442184,225.24,225.13,14.58433216]
[1733764579796,24.442184,225.24,225.13,0.25098]
[1733764582918,3.3299,225.23,225.09,14.33335216]
[1733764583095,43.776884,225.21,225.08,14.33335216]
[1733764583295,0.6653,225.2,225.08,14.33335216]
[1733764583721,23.776884,225.19,225.09,0.12549]
[1733764583898,0.6653,225.18,225.09,0.12549]
[1733764584323,0.6653,225.18,225.09,0.25098]
[1733764584736,0.6653,225.18,225.1,0.12549]
[1733764585033,24.442184,225.2,225.1,0.25098]
[1733764585414,24.442184,225.2,225.1,0.12549]
[1733764585616,24.442184,225.2,225.09,0.12549]
[1733764585814,23.776884,225.18,225.06,14.33335216]
[1733764586130,1.6485,225.19,225.08,14.33335216]
[1733764586131,0.6653,225.17,225.08,14.33335216]
[1733764586322,0.6653,225.17,225.1,14.33335216]
[1733764586531,0.6653,225.17,225.1,0.12549]
[1733764586930,24.442184,225.18,225.1,0.25098]
[1733764587165,0.6653,225.18,225.11,0.25098]
[1733764587511,23.3303,225.21,225.11,0.25098]
[1733764587512,24.442184,225.2,225.11,0.25098]
[1733764587843,0.6653,225.2,225.12,0.25098]
[1733764588146,0.6653,225.2,225.12,14.58433216]
[1733764588440,0.6653,225.23,225.14,0.25098]
[1733764589610,1.5568,225.24,225.14,0.25098]
[1733764589611,0.6653,225.24,225.17,0.12549]
[1733764590507,0.6653,225.24,225.14,14.33335216]
[1733764590508,0.6653,225.26,225.14,0.12549]
[1733764590711,0.6653,225.26,225.14,0.25098]
[1733764590913,0.6653,225.26,225.14,14.58433216]
[1733764591135,0.6653,225.26,225.14,0.25098]
[1733764591438,23.776884,225.25,225.14,0.25098]
[1733764591627,0.6653,225.24,225.14,0.25098]
[1733764592020,20.0,225.22,225.1,0.12549]
[1733764592232,20.0,225.22,225.08,15.94835216]
[1733764592233,0.6653,225.21,225.08,15.94835216]
[1733764592550,23.776884,225.2,225.08,1.615]
[1733764592726,0.6653,225.19,225.09,0.12549]
[1733764593815,0.6653,225.19,225.09,0.25098]
[1733764594615,0.6653,225.19,225.11,0.25098]
[1733764594821,0.6653,225.2,225.11,0.25098]
[1733764595249,0.6653,225.2,225.1,0.25098]
[1733764597015,0.6653,225.2,225.11,0.12549]
[1733764597225,0.6653,225.21,225.13,0.12549]
[1733764597541,0.6653,225.23,225.14,0.12549]
[1733764598030,0.6653,225.23,225.15,0.12549]
[1733764598534,0.6653,225.24,225.15,0.12549]
[1733764598721,0.6653,225.24,225.13,0.12549]
[1733764599349,20.6653,225.24,225.13,0.25098]
[1733764599919,20.6653,225.24,225.14,0.12549]
[1733764600128,0.6653,225.24,225.15,0.12549]
[1733764600744,0.6653,225.24,225.13,14.58433216]
[1733764601052,0.6653,225.24,225.13,0.25098]
[1733764602351,0.6653,225.27,225.19,0.12549]
[1733764602530,0.6653,225.27,225.19,0.25098]
[1733764603223,0.6653,225.27,225.17,14.58433216]
[1733764603423,0.6653,225.26,225.17,0.25098]
[1733764603639,20.0,225.27,225.17,0.25098]
[1733764603839,0.6653,225.26,225.17,0.25098]
[1733764604341,20.6653,225.26,225.17,0.25098]
[1733764605453,20.6653,225.26,225.17,0.12549]
[1733764605662,20.6653,225.26,225.13,14.33335216]
[1733764605857,20.6653,225.26,225.14,0.25098]
[1733764606350,20.6653,225.26,225.15,0.25098]
[1733764606770,23.776884,225.25,225.15,0.12549]
[1733764606935,0.6653,225.24,225.12,0.12549]
[1733764607138,0.6653,225.24,225.12,0.25098]
[1733764607446,23.776884,225.23,225.11,6.3011]
[1733764607646,0.6653,225.22,225.11,6.3011]
[1733764608161,20.0,225.2,225.11,6.3011]
[1733764608477,0.6653,225.19,225.11,6.3011]
[1733764608758,0.6653,225.19,225.12,0.12549]
[1733764609964,0.6653,225.19,225.12,0.25098]
[1733764610732,0.6653,225.19,225.12,0.12549]
[1733764611057,0.6653,225.19,225.1,0.25098]
[1733764611434,0.6653,225.19,225.09,0.12549]
[1733764611628,0.6653,225.19,225.09,0.25098]
[1733764611849,23.776884,225.18,225.06,20.53825216]
[1733764612065,0.6653,225.17,225.05,14.33335216]
[1733764612650,20.0,225.15,225.06,0.12549]
[1733764612853,0.6653,225.14,225.06,0.12549]
[1733764613559,0.6653,225.14,225.06,0.25098]
[1733764614655,0.6653,225.14,225.07,0.25098]
[1733764615877,0.6653,225.14,225.05,0.12549]
[1733764616034,0.6653,225.14,225.04,15.90575216]
[1733764616035,0.6653,225.14,225.04,0.12549]
[1733764616360,0.6653,225.14,225.03,14.33335216]
[1733764616561,0.6653,225.14,225.05,0.12549]
[1733764618366,0.6653,225.14,225.05,14.33335216]
[1733764620233,0.6653,225.14,225.05,0.12549]
[1733764620739,23.776884,225.13,225.03,14.33335216]
[1733764620941,0.6653,225.12,225.04,0.12549]
[1733764621458,23.776884,225.11,225.01,14.87241156]
[1733764621664,0.6653,225.1,225.02,0.25098]
[1733764622660,27.108284,225.13,225.02,0.25098]
[1733764622661,23.776884,225.11,225.02,14.58433216]
[1733764622862,0.6653,225.1,225.02,0.25098]
[1733764623154,23.776884,225.09,225.01,0.5390594]
[1733764623361,0.6653,225.08,225.01,0.5390594]
[1733764624935,27.109084,225.07,225.01,0.5390594]
[1733764625141,0.6653,225.06,225.01,0.5390594]
[1733764626160,23.776884,225.05,225.01,0.5390594]
[1733764626362,0.6653,225.04,225.01,0.5390594]
[1733764628047,0.6653,225.11,225.01,14.87241156]
[1733764628251,0.6653,225.11,225.01,0.5390594]
[1733764628666,0.6653,225.11,225.02,0.12549]